bitfinex/quotes_ETHUSD_20250807
["timestamp","ask_amount","ask_price","bid_price","bid_amount"]
[1754540730814,1e-08,3674.3,3674.2,9.84268091]
[1754540731015,1e-08,3674.3,3674.2,5.72168091]
[1754540731211,1e-08,3674.3,3674.2,9.84268091]
[1754540734334,1e-08,3674.3,3674.2,10.30998091]
[1754540734941,1e-08,3674.3,3674.2,9.84268091]
[1754540735237,1e-08,3674.3,3674.2,10.30998091]
[1754540735441,1e-08,3674.3,3674.2,9.84268091]
[1754540736273,1e-08,3674.3,3674.2,9.97868091]
[1754540736671,1e-08,3674.3,3674.2,10.44598091]
[1754540738143,1e-08,3674.3,3674.2,9.97868091]
[1754540739670,1e-08,3674.3,3674.2,9.97768091]
[1754540739972,0.43500001,3674.3,3674.2,9.97768091]
[1754540740143,1e-08,3674.3,3674.2,9.97768091]
[1754540743173,0.43500001,3674.3,3674.2,9.97768091]
[1754540743378,0.91030001,3674.3,3674.2,9.97768091]
[1754540744576,0.91030001,3674.3,3674.2,6.97768091]
[1754540744946,0.91030001,3674.3,3674.2,2.85768091]
[1754540748287,0.91030001,3674.3,3674.2,0.136]
[1754540748462,0.91030001,3674.3,3674.1,2.72174264]
[1754540748663,0.9103,3674.2,3674.1,2.72174264]
[1754540751692,0.9103,3674.2,3674.1,2.72374264]
[1754540755467,1e-08,3674.3,3674.2,2.72168091]
[1754540755673,0.92970001,3674.3,3674.2,2.72168091]
[1754540759927,1e-08,3674.3,3674.2,2.85768091]
[1754540760699,0.92970001,3674.3,3674.2,2.85768091]
[1754540761821,0.43940001,3674.3,3674.2,2.85768091]
[1754540762930,0.92970001,3674.3,3674.2,2.85768091]
[1754540763082,0.43940001,3674.3,3674.2,2.85768091]
[1754540763280,1e-08,3674.3,3674.2,2.85768091]
[1754540764418,0.92970001,3674.3,3674.2,2.85768091]
[1754540765229,0.92970001,3674.3,3674.2,2.72168091]
[1754540765835,0.92970001,3674.3,3674.1,0.002]
[1754540765992,1e-08,3674.3,3674.2,2.72168091]
[1754540766615,0.92970001,3674.3,3674.2,2.72168091]
[1754540766835,1.06570001,3674.3,3674.2,2.72168091]
[1754540767367,1.06570001,3674.3,3674.1,2.72373931]
[1754540767671,0.9297,3674.2,3674.1,2.72373931]
[1754540770967,0.9297,3674.2,3674.1,0.002]
[1754540772862,0.13600001,3674.3,3674.2,2.72168091]
[1754540773075,0.43940001,3674.3,3674.2,2.72168091]
[1754540773230,0.92970001,3674.3,3674.2,2.72168091]
[1754540773735,0.92970001,3674.3,3674.1,2.7237447]
[1754540773940,0.9297,3674.2,3674.1,0.002]
[1754540776959,0.9297,3674.2,3674.1,2.72375498]
[1754540782584,0.9297,3674.2,3674.1,0.002]
[1754540782787,0.9297,3674.2,3674.1,2.72375498]
[1754540783948,0.9297,3674.2,3674.1,0.002]
[1754540785454,17.33817221,3674.2,3674.1,0.002]
[1754540785757,5.13427,3674.2,3674.1,0.002]
[1754540786832,4.58427,3674.2,3674.1,0.002]
[1754540787174,8.1857,3674.2,3674.1,0.002]
[1754540792344,5.1857,3674.2,3674.1,0.002]
[1754540794974,5.1857,3674.2,3674.1,0.00049799]
[1754540802523,0.5754,3674.2,3674.1,0.00049799]
[1754540802818,0.5754,3674.2,3674.1,2.72225297]
[1754540802819,4.256,3674.2,3674.1,2.72225297]
[1754540802983,4.256,3674.2,3674.1,3.76560851]
[1754540804282,4.12,3674.2,3674.1,3.44820851]
[1754540804472,4.12,3674.2,3674.1,2.85825297]
[1754540805071,5.0353,3674.2,3674.1,2.85825297]
[1754540805807,5.0353,3674.2,3674.1,2.72225297]
[1754540813018,4.12,3674.2,3674.1,2.72225297]
[1754540816489,5.0448,3674.2,3674.1,2.72225297]
[1754540816692,5.0458,3674.2,3674.1,2.72225297]
[1754540820230,5.0458,3674.2,3674.1,0.00049799]
[1754540820446,5.68638,3674.2,3674.1,0.00049799]
[1754540823034,5.68638,3674.2,3674.1,2.72225297]
[1754540823341,5.1818,3674.2,3674.1,2.72225297]
[1754540824554,5.1818,3674.2,3674.1,0.00049799]
[1754540824945,5.1818,3674.2,3674.1,2.72225297]
[1754540825843,5.1818,3674.2,3674.1,0.00049799]
[1754540826709,5.1818,3674.2,3674.1,2.72225297]
[1754540827549,5.1818,3674.2,3674.1,0.00049799]
[1754540827849,5.69998,3674.2,3674.1,0.00049799]
[1754540828242,5.69998,3674.2,3674.1,2.72225297]
[1754540829647,5.1818,3674.2,3674.1,2.72225297]
[1754540837773,5.1808,3674.2,3674.1,2.72225297]
[1754540838566,0.001,3674.2,3674.1,2.72225297]
[1754540838746,4.12,3674.2,3674.1,11.01517529]
[1754540840233,0.001,3674.2,3674.1,10.55297529]
[1754540840432,4.12,3674.2,3674.1,11.02027529]
[1754540840667,4.12,3674.2,3674.1,3.18955297]
[1754540841031,0.001,3674.2,3674.1,3.18955297]
[1754540841325,0.001,3674.2,3674.1,3.32555297]
[1754540844274,1e-08,3674.3,3674.2,2.72168091]
[1754540844456,1e-08,3674.3,3674.2,12.79883782]
[1754540845256,1e-08,3674.3,3674.2,16.91783782]
[1754540845461,1e-08,3674.3,3674.2,20.05383782]
[1754540846065,1e-08,3674.3,3674.2,20.26014907]
[1754540854592,1e-08,3674.3,3674.2,19.58653782]
[1754540854785,0.94940001,3674.3,3674.2,9.97568091]
[1754540858411,0.94940001,3674.3,3674.2,2.85768091]
[1754540863846,0.94940001,3674.3,3674.2,2.72168091]
[1754540871823,0.94940001,3674.3,3674.1,2.72223585]
[1754540872035,0.8843,3674.2,3674.1,2.72223585]
[1754540879634,1e-08,3674.3,3674.2,2.72168091]
[1754540880126,0.88430001,3674.3,3674.2,2.72168091]
[1754540891024,1.02030001,3674.3,3674.2,2.72168091]
[1754540895360,1e-08,3674.3,3674.2,2.72168091]
[1754540895559,1e-08,3674.3,3674.2,3.86937259]
[1754540895861,1e-08,3674.6,3674.5,2.7214587]
[1754540896163,1e-08,3674.6,3674.5,12.80112506]
[1754540896751,1e-08,3674.6,3674.5,12.93712506]
[1754540897127,1e-08,3674.6,3674.5,13.04616806]
[1754540897327,1e-08,3674.6,3674.5,14.07059814]
[1754540904381,1e-08,3674.6,3674.5,14.07059814]
[1754540904558,0.001,3675.0,3674.9,2.72116248]
[1754540904957,0.001,3675.0,3674.9,2.85716248]
[1754540906391,0.9027,3675.0,3674.9,2.85716248]
[1754540907193,0.001,3675.0,3674.9,2.85716248]
[1754540907378,0.001,3675.0,3674.9,3.40155416]
[1754540908692,0.001,3675.0,3674.9,2.85716248]
[1754540911974,0.001,3675.0,3674.9,5.85716248]
[1754540912179,0.001,3675.0,3674.9,2.85716248]
[1754540912379,0.001,3675.0,3674.9,10.08219848]
[1754540919390,0.436,3675.0,3674.9,7.08219848]
[1754540919568,0.9027,3675.0,3674.9,6.97316248]
[1754540920307,0.9027,3675.0,3674.9,2.85716248]
[1754540922129,0.9027,3675.0,3674.9,2.72116248]
[1754540926007,0.9027,3675.0,3674.7,2.72130998]
[1754540926318,0.9017,3674.9,3674.4,0.136]
[1754540926532,0.136,3674.5,3674.3,2.72159883]
[1754540926928,0.9017,3674.4,3674.3,2.72159883]
[1754540927703,0.9017,3674.4,3674.2,2.721674]
[1754540928027,0.9017,3674.3,3674.2,2.721674]
[1754540930233,0.136,3674.5,3674.2,2.721674]
[1754540930443,1.0582,3674.5,3674.4,2.72153276]
[1754540930601,0.136,3674.5,3674.4,2.72153276]
[1754540931337,0.5795,3674.5,3674.4,2.72153276]
[1754540931766,1.0582,3674.5,3674.4,2.72153276]
[1754540931967,0.136,3674.5,3674.4,2.72153276]
[1754540932172,1.0582,3674.9,3674.8,2.72123176]
[1754540933277,1.57572,3674.9,3674.8,2.72123176]
[1754540933571,1.57572,3674.9,3674.7,2.72129657]
[1754540933771,0.65352,3674.9,3674.7,2.72129657]
[1754540933972,0.9222,3674.8,3674.7,2.72129657]
[1754540937785,0.136,3674.9,3674.8,2.72123652]
[1754540938140,0.5795,3674.9,3674.8,2.72123652]
[1754540938372,1.0582,3674.9,3674.8,2.72123652]
[1754540944283,1.57572,3674.9,3674.4,2.72153276]
[1754540944483,0.65352,3674.9,3674.3,0.136]
[1754540944686,0.65352,3674.9,3674.4,2.72150487]
[1754540944687,0.136,3674.6,3674.4,2.72150487]
[1754540944981,5.0372,3674.5,3674.1,0.13649799]
[1754540945181,0.9222,3674.4,3674.1,0.00049799]
[1754540945608,0.9222,3674.3,3674.1,0.00049799]
[1754540945897,0.136,3674.2,3674.1,0.00049799]
[1754540946096,1.0582,3674.2,3674.1,0.00049799]
[1754540947396,1.57552,3674.2,3674.1,0.00049799]
[1754540953607,2.12552,3674.2,3674.1,0.00049799]
[1754540953811,4.84720091,3674.2,3674.1,0.00049799]
[1754540953982,2.12552,3674.2,3674.1,0.00049799]
[1754540956512,6.24152,3674.2,3674.1,0.00049799]
[1754540957930,6.24043152,3674.2,3674.1,0.00049799]
[1754540961016,8.96211243,3674.2,3674.1,0.00049799]
[1754540962299,6.24043152,3674.2,3674.1,0.00049799]
[1754540964631,12.96503152,3674.2,3674.1,0.00049799]
[1754540966326,12.96603152,3674.2,3674.1,0.00049799]
[1754540974425,18.68771243,3674.2,3674.1,0.00049799]
[1754540974623,21.57547879,3674.2,3674.1,0.00049799]
[1754540976401,11.96311243,3674.2,3674.1,0.00049799]
[1754540984638,12.23591243,3674.2,3674.1,0.00049799]
[1754540984943,11.96311243,3674.2,3674.1,0.00049799]
[1754540991144,18.68771243,3674.2,3674.1,0.00049799]
[1754540996354,28.30007879,3674.2,3674.1,0.00049799]
[1754541000537,21.92438665,3674.2,3674.1,0.00049799]
[1754541001455,22.03351065,3674.2,3674.1,0.00049799]
[1754541002254,21.68460279,3674.2,3674.1,0.00049799]
[1754541003466,17.56860279,3674.2,3674.1,0.00049799]
[1754541003628,21.20599127,3674.2,3674.1,0.00049799]
[1754541003834,21.56896727,3674.2,3674.1,0.00049799]
[1754541004935,21.84176727,3674.2,3674.1,0.00049799]
[1754541005267,21.56896727,3674.2,3674.1,0.00049799]
[1754541013549,21.67808827,3674.2,3674.1,0.00049799]
[1754541016385,20.76248827,3674.2,3674.1,0.00049799]
[1754541016552,11.04100091,3674.2,3674.1,0.00049799]
[1754541016880,19.80235378,3674.2,3674.1,0.00049799]
[1754541017941,15.68735378,3674.2,3674.1,0.00049799]
[1754541018282,19.80235378,3674.2,3674.1,0.00049799]
[1754541020986,26.52695378,3674.2,3674.1,0.00049799]
[1754541022681,28.30928089,3674.2,3674.1,0.00049799]
[1754541022980,28.41839889,3674.2,3674.1,0.00049799]
[1754541026801,28.76730675,3674.2,3674.1,0.00049799]
[1754541030868,28.41839889,3674.2,3674.1,0.00049799]
[1754541036569,34.95939889,3674.2,3674.1,0.00049799]
[1754541038411,24.30339889,3674.2,3674.1,0.00049799]
[1754541038586,28.41739889,3674.2,3674.1,0.00049799]
[1754541044719,26.63567057,3674.2,3674.1,0.00049799]
[1754541045011,17.87371891,3674.2,3674.1,0.00049799]
[1754541045199,25.71117057,3674.2,3674.1,0.00049799]
[1754541045402,26.63507057,3674.2,3674.1,0.00049799]
[1754541052697,34.47252223,3674.2,3674.1,0.00049799]
[1754541053022,3.27182906,3674.0,3673.9,0.002]
[1754541053320,26.19673238,3674.0,3673.9,0.002]
[1754541053485,33.17679634,3674.0,3673.9,0.002]
[1754541053685,34.11319634,3674.0,3673.9,0.002]
[1754541054223,34.22233134,3674.0,3673.9,0.002]
[1754541054423,36.9509932,3674.0,3673.9,0.002]
[1754541054719,30.89832989,3674.0,3673.9,0.002]
[1754541055222,31.24736919,3674.0,3673.9,0.002]
[1754541056788,34.11736919,3674.0,3673.9,0.002]
[1754541061007,34.11714352,3674.0,3673.9,0.002]
[1754541075051,33.86190523,3674.0,3673.9,0.002]
[1754541075262,34.11700766,3674.0,3673.9,0.002]
[1754541076687,40.17646185,3674.0,3673.9,0.002]
[1754541083961,39.71126185,3674.0,3673.9,0.002]
[1754541084164,36.02002255,3674.0,3673.9,0.002]
[1754541084782,36.02002255,3674.0,3673.9,0.4693]
[1754541085359,36.02002255,3674.0,3673.9,0.002]
[1754541086268,28.17917545,3674.0,3673.9,0.4693]
[1754541088078,24.06617545,3674.0,3673.9,0.4693]
[1754541088259,12.94666649,3674.0,3673.9,0.4693]
[1754541088473,17.05966649,3674.0,3673.9,0.4693]
[1754541088652,17.60966649,3674.0,3673.9,0.4693]
[1754541088846,17.50053149,3674.0,3673.9,0.4693]
[1754541089474,10.77593149,3674.0,3673.9,0.4693]
[1754541094445,20.39352728,3674.0,3673.9,0.002]
[1754541094652,23.12218914,3674.0,3673.9,0.002]
[1754541096689,20.83098914,3674.0,3673.9,0.002]
[1754541096981,23.83098914,3674.0,3673.9,0.002]
[1754541097188,24.29308914,3674.0,3673.9,0.002]
[1754541098056,23.83098914,3674.0,3673.9,0.002]
[1754541098899,24.64212844,3674.0,3673.9,0.002]
[1754541099650,19.28198914,3674.0,3673.9,0.002]
[1754541099866,23.39398914,3674.0,3673.9,0.4693]
[1754541100184,23.39398914,3674.0,3673.9,0.002]
[1754541101656,23.82998914,3674.0,3673.9,0.002]
[1754541102785,24.29208914,3674.0,3673.9,0.002]
[1754541103687,30.11858914,3674.0,3673.9,0.002]
[1754541108290,30.11854699,3674.0,3673.9,0.002]
[1754541109889,30.56284699,3674.0,3673.9,0.002]
[1754541110695,28.78257918,3674.0,3673.9,0.002]
[1754541111078,28.5275189,3674.0,3673.9,0.002]
[1754541111385,28.78265434,3674.0,3673.9,0.002]
[1754541111911,29.26645434,3674.0,3673.9,0.002]
[1754541114022,29.26658662,3674.0,3673.9,0.002]
[1754541116520,29.61562592,3674.0,3673.9,0.002]
[1754541117125,29.3603582,3674.0,3673.9,0.002]
[1754541117326,29.61583594,3674.0,3673.9,0.002]
[1754541117524,37.45316392,3674.0,3673.9,0.002]
[1754541117723,37.45322527,3674.0,3673.9,0.002]
[1754541118725,37.56235727,3674.0,3673.9,0.002]
[1754541120222,37.56227784,3674.0,3673.9,0.002]
[1754541120422,6.54470315,3673.9,3673.8,0.002]
[1754541120635,13.98886397,3673.9,3673.8,0.002]
[1754541120829,24.54067427,3673.9,3673.8,0.002]
[1754541121515,31.26527427,3673.9,3673.8,0.002]
[1754541121692,31.37441127,3673.9,3673.8,0.002]
[1754541129836,27.26341127,3673.9,3673.8,0.002]
[1754541130038,31.37441127,3673.9,3673.8,0.002]
[1754541133289,31.11895161,3673.9,3673.8,0.002]
[1754541133586,31.37406299,3673.9,3673.8,0.002]
[1754541133990,31.37406148,3673.9,3673.8,0.002]
[1754541134786,24.64946148,3673.9,3673.8,0.002]
[1754541135585,3.55,3673.2,3671.0,3.0]
[1754541135887,0.55,3672.9,3672.4,2.72295486]
[1754541136080,0.55,3672.7,3672.4,2.72295486]
[1754541136287,0.136,3672.5,3672.4,2.72295486]
[1754541138652,0.136,3672.5,3672.3,2.99800725]
[1754541138852,4.111,3672.4,3672.3,2.99800725]
[1754541139087,4.111,3672.4,3672.3,0.27492228]
[1754541139489,4.111,3672.4,3672.3,0.002]
[1754541140268,4.111,3672.4,3672.3,2.72508907]
[1754541144189,0.136,3672.5,3672.4,2.72301492]
[1754541144388,4.247,3672.5,3672.4,2.72301492]
[1754541145997,4.247,3672.5,3672.4,2.22301492]
[1754541146501,4.247,3672.5,3672.4,3.50201035]
[1754541147514,4.50247237,3672.5,3672.4,3.50201035]
[1754541149016,4.50250182,3672.5,3672.4,3.50201035]
[1754541150314,4.50253832,3672.5,3672.4,3.50201035]
[1754541151989,4.247,3672.5,3672.4,3.50201035]
[1754541152178,4.5025424,3672.5,3672.4,3.50201035]
[1754541152712,4.5025424,3672.5,3672.4,2.22301492]
[1754541154281,4.5025424,3672.5,3672.3,2.72507451]
[1754541154482,0.25555214,3672.4,3672.3,2.72507451]
[1754541155190,0.2555539,3672.4,3672.3,2.72507451]
[1754541158522,0.7082539,3672.4,3672.3,2.72507451]
[1754541159323,0.2555539,3672.4,3672.3,10.56486559]
[1754541159524,4.247,3672.5,3672.4,2.72301492]
[1754541162423,4.111,3672.5,3672.4,2.72301492]
[1754541162732,0.8811,3673.2,3672.6,2.72286663]
[1754541162889,0.136,3672.9,3672.4,2.85894406]
[1754541163090,5.24655324,3672.8,3672.4,0.136]
[1754541163290,0.136,3672.5,3672.3,0.002]
[1754541163625,4.11,3672.4,3672.3,0.002]
[1754541163935,5.5411,3672.4,3672.3,0.002]
[1754541164084,5.79659697,3672.4,3672.3,0.002]
[1754541164290,9.66214262,3672.4,3672.3,0.002]
[1754541164588,12.38513648,3672.4,3672.3,0.002]
[1754541168090,12.73417578,3672.4,3672.3,0.002]
[1754541170712,12.47869987,3672.4,3672.3,0.002]
[1754541172806,6.27308907,3672.3,3672.2,0.002]
[1754541173006,19.77234668,3672.3,3672.2,0.002]
[1754541174213,17.04925761,3672.3,3672.2,0.002]
[1754541174749,19.77234668,3672.3,3672.2,0.002]
[1754541178017,23.99254168,3672.3,3672.2,0.002]
[1754541178642,30.71714168,3672.3,3672.2,0.002]
[1754541180260,20.74913837,3672.3,3672.2,0.002]
[1754541180412,20.19913837,3672.3,3672.2,0.002]
[1754541181315,20.74913837,3672.3,3672.2,0.002]
[1754541182153,20.98898267,3672.3,3672.2,0.002]
[1754541186082,16.87798267,3672.3,3672.2,0.002]
[1754541186271,20.98898267,3672.3,3672.2,0.002]
[1754541186840,21.09816767,3672.3,3672.2,0.002]
[1754541189172,20.98898267,3672.3,3672.2,0.002]
[1754541190176,6.62220252,3672.2,3672.1,1e-08]
[1754541190479,19.86942839,3672.2,3672.1,1e-08]
[1754541190780,6.27323738,3672.1,3672.0,1e-08]
[1754541190951,17.59387668,3672.1,3672.0,1e-08]
[1754541191147,21.22213854,3672.1,3672.0,1e-08]
[1754541192584,6.27360823,3671.6,3671.5,1e-08]
[1754541192789,6.27360823,3671.6,3669.6,2.72502929]
[1754541192790,0.55,3671.4,3669.6,2.72502929]
[1754541192963,14.27996401,3671.3,3669.6,2.72502929]
[1754541193160,18.66460331,3671.3,3669.6,2.72502929]
[1754541193494,24.11709596,3671.3,3669.6,2.72502929]
[1754541193692,24.11709596,3671.3,3669.7,2.72499451]
[1754541194052,24.11709596,3671.3,3669.5,2.72512714]
[1754541196452,24.11709596,3671.3,3669.4,2.72523671]
[1754541196790,24.11709596,3671.3,3671.2,1e-08]
[1754541198816,0.55,3670.0,3669.2,2.72538101]
[1754541198961,0.55,3669.8,3669.3,2.72530898]
[1754541199163,0.136,3669.4,3669.3,2.72530898]
[1754541199403,4.248,3669.4,3669.3,2.72530898]
[1754541199974,4.248,3669.4,3669.1,2.72540819]
[1754541200192,0.136,3669.2,3669.0,2.72553522]
[1754541200498,4.112,3669.1,3668.9,2.72561135]
[1754541200900,4.112,3669.1,3668.8,3.22467496]
[1754541201090,0.136,3669.0,3668.8,3.22467496]
[1754541201400,4.112,3668.9,3668.8,3.22467496]
[1754541201909,4.112,3668.9,3668.8,3.22468687]
[1754541205166,4.112,3668.9,3668.8,3.22668687]
[1754541205767,0.136,3669.1,3669.0,2.72553829]
[1754541205960,4.248,3669.1,3669.0,2.72553829]
[1754541209611,0.136,3669.1,3669.0,2.72553829]
[1754541209813,4.248,3669.1,3669.0,2.72553829]
[1754541210003,4.248,3669.1,3669.0,3.69910889]
[1754541210200,6.248,3669.1,3669.0,3.69910889]
[1754541210385,6.112,3669.1,3669.0,3.69910889]
[1754541212867,2.0,3669.1,3669.0,3.69910889]
[1754541213081,4.112,3669.1,3669.0,1.1095706]
[1754541214090,4.112,3669.1,3669.0,3.83510889]
[1754541214988,4.112,3669.1,3669.0,3.69910889]
[1754541222538,0.136,3669.4,3669.3,2.72531545]
[1754541222701,4.112,3669.4,3669.3,3.32056661]
[1754541225837,4.5993,3669.4,3669.3,3.32056661]
[1754541226134,4.5993,3669.4,3669.3,2.72531545]
[1754541226435,5.0661,3669.4,3669.3,2.72531545]
[1754541227838,4.112,3669.4,3669.3,2.72531545]
[1754541228725,4.5993,3669.4,3669.3,2.72531545]
[1754541229448,0.136,3669.5,3669.4,2.72524118]
[1754541229753,4.248,3669.5,3669.4,3.27029684]
[1754541230243,4.7386,3669.5,3669.4,3.27029684]
[1754541230451,5.1757,3669.5,3669.4,3.27029684]
[1754541233451,5.1757,3669.5,3669.4,2.72524118]
[1754541242059,5.1757,3669.5,3669.3,2.72529852]
[1754541242251,4.248,3669.5,3669.3,2.72529852]
[1754541242579,0.55,3669.3,3668.8,0.002]
[1754541242884,0.136,3669.1,3668.8,0.002]
[1754541243150,0.136,3668.9,3668.8,0.002]
[1754541243783,1.0637,3668.9,3668.8,0.002]
[1754541245064,1.6137,3668.9,3668.8,0.002]
[1754541247775,1.93821207,3668.9,3668.8,0.002]
[1754541249672,0.136,3668.9,3668.8,2.72768687]
[1754541249856,0.4906,3669.3,3669.1,2.72543712]
[1754541250060,4.112,3669.2,3669.1,2.72543712]
[1754541250261,4.7386,3669.2,3669.1,2.72543712]
[1754541250559,5.1757,3669.2,3669.1,2.72543712]
[1754541250760,5.1757,3669.2,3669.0,2.72552822]
[1754541251082,0.136,3669.0,3668.9,2.72560354]
[1754541251389,0.55,3668.9,3668.8,0.002]
[1754541251543,1.4777,3668.9,3668.8,0.002]
[1754541256685,2.05037,3668.9,3668.8,0.002]
[1754541263308,6.16337,3668.9,3668.8,0.002]
[1754541267739,5.61337,3668.9,3668.8,0.002]
[1754541269027,6.16337,3668.9,3668.8,0.002]
[1754541269948,8.88898258,3668.9,3668.8,0.002]
[1754541270491,15.61358258,3668.9,3668.8,0.002]
[1754541271121,18.61358258,3668.9,3668.8,0.002]
[1754541273074,18.96262188,3668.9,3668.8,0.002]
[1754541273363,12.23802188,3668.9,3668.8,0.002]
[1754541275224,11.88898258,3668.9,3668.8,0.002]
[1754541276962,11.34298258,3668.9,3668.8,0.002]
[1754541277147,21.51194659,3668.9,3668.8,0.002]
[1754541278409,7.77598258,3668.9,3668.8,0.002]
[1754541278562,14.24067,3668.9,3668.8,0.002]
[1754541278903,13.669,3668.9,3668.8,0.002]
[1754541279403,11.219,3668.9,3668.8,0.002]
[1754541279560,14.6736,3668.9,3668.8,0.002]
[1754541279987,10.101,3668.9,3668.8,0.002]
[1754541280394,11.219,3668.9,3668.8,0.002]
[1754541280595,14.219,3668.9,3668.8,0.002]
[1754541281909,7.101,3668.9,3668.8,0.002]
[1754541282066,6.551,3668.9,3668.8,2.72768687]
[1754541282273,0.136,3669.0,3668.9,2.72561258]
[1754541282473,0.55,3668.9,3668.8,0.002]
[1754541282667,1.0046,3668.9,3668.8,0.002]
[1754541282867,1.4412,3668.9,3668.8,0.002]
[1754541283405,4.16681258,3668.9,3668.8,0.002]
[1754541283561,5.97099024,3668.9,3668.8,0.002]
[1754541284467,8.97099024,3668.9,3668.8,0.002]
[1754541287596,9.08027024,3668.9,3668.8,0.002]
[1754541287798,9.42930954,3668.9,3668.8,0.002]
[1754541289170,9.08027024,3668.9,3668.8,1e-08]
[1754541289375,9.42930954,3668.9,3668.8,1e-08]
[1754541291381,3.27576116,3668.7,3668.6,1e-08]
[1754541291701,20.50276447,3668.7,3668.6,1e-08]
[1754541291910,21.42776447,3668.7,3668.6,1e-08]
[1754541292502,21.53706547,3668.7,3668.6,1e-08]
[1754541296070,16.60772617,3668.7,3668.6,1e-08]
[1754541296203,23.10680883,3668.7,3668.6,1e-08]
[1754541296534,23.56410883,3668.7,3668.6,1e-08]
[1754541297433,23.91314813,3668.7,3668.6,1e-08]
[1754541300769,24.05060688,3668.7,3668.6,1e-08]
[1754541303054,24.04726856,3668.7,3668.6,1e-08]
[1754541303638,3.27598408,3668.4,3668.3,0.002]
[1754541303839,20.15494809,3668.4,3668.3,0.002]
[1754541304041,21.42898739,3668.4,3668.3,0.002]
[1754541304763,21.18925509,3668.4,3668.3,0.002]
[1754541305277,27.74225509,3668.4,3668.3,0.002]
[1754541305433,25.42191695,3668.4,3668.3,0.002]
[1754541305636,28.99591695,3668.4,3668.3,0.002]
[1754541306359,30.47091695,3668.4,3668.3,0.002]
[1754541306671,29.54591695,3668.4,3668.3,0.002]
[1754541309207,30.01361695,3668.4,3668.3,0.002]
[1754541309408,30.47091695,3668.4,3668.3,0.002]
[1754541309706,29.54591695,3668.4,3668.3,0.002]
[1754541309869,30.47091695,3668.4,3668.3,0.002]
[1754541311614,37.54455625,3668.4,3668.3,0.002]
[1754541311976,37.19551695,3668.4,3668.3,1e-08]
[1754541312170,37.19551695,3668.4,3668.0,0.002]
[1754541312171,3.27620702,3668.1,3668.0,0.002]
[1754541312409,23.23287219,3668.1,3668.0,0.002]
[1754541312817,24.15787219,3668.1,3668.0,0.002]
[1754541313700,24.97775619,3668.1,3668.0,0.002]
[1754541314027,24.62871689,3668.1,3668.0,0.002]
[1754541314413,23.70371689,3668.1,3668.0,0.002]
[1754541314576,24.17141689,3668.1,3668.0,0.002]
[1754541314782,24.62871689,3668.1,3668.0,0.002]
[1754541315335,23.70371689,3668.1,3668.0,0.002]
[1754541315529,24.17141689,3668.1,3668.0,0.002]
[1754541315737,23.70371689,3668.1,3668.0,0.002]
[1754541315952,23.70571689,3668.1,3668.0,0.002]
[1754541317056,23.70471689,3668.1,3668.0,0.002]
[1754541317437,22.88483289,3668.1,3668.0,0.002]
[1754541317656,22.99413489,3668.1,3668.0,0.002]
[1754541320773,23.24983127,3668.1,3668.0,0.002]
[1754541321094,19.12483127,3668.1,3668.0,0.002]
[1754541321387,23.24983127,3668.1,3668.0,0.002]
[1754541323309,19.12483127,3668.1,3668.0,0.002]
[1754541323599,23.24883127,3668.1,3668.0,0.002]
[1754541323800,23.74463127,3668.1,3668.0,0.002]
[1754541323953,23.24883127,3668.1,3668.0,0.002]
[1754541324159,20.90666741,3668.1,3668.0,0.002]
[1754541324703,20.41086741,3668.1,3668.0,0.002]
[1754541326182,20.41089411,3668.1,3668.0,0.002]
[1754541327061,20.90669411,3668.1,3668.0,0.002]
[1754541328508,17.68368709,3668.1,3668.0,0.002]
[1754541328714,3.686,3668.1,3668.0,0.002]
[1754541328988,8.06471617,3668.1,3668.0,0.002]
[1754541329192,8.06471558,3668.1,3668.0,0.002]
[1754541329491,3.94171558,3668.1,3668.0,0.002]
[1754541329793,8.06471558,3668.1,3668.0,0.002]
[1754541330360,8.06571558,3668.1,3668.0,0.002]
[1754541331596,8.06471558,3668.1,3668.0,0.002]
[1754541334382,0.94171558,3668.1,3668.0,0.002]
[1754541334573,8.06471558,3668.1,3668.0,0.002]
[1754541336184,8.56051558,3668.1,3668.0,0.002]
[1754541336389,11.51655354,3668.1,3668.0,0.002]
[1754541336697,8.99941558,3668.1,3668.0,0.002]
[1754541336879,11.7256226,3668.1,3668.0,0.002]
[1754541337699,21.69362591,3668.1,3668.0,0.002]
[1754541337906,21.6934284,3668.1,3668.0,0.002]
[1754541338399,21.3443891,3668.1,3668.0,0.002]
[1754541338604,24.07305096,3668.1,3668.0,0.002]
[1754541339473,24.71086076,3668.1,3668.0,0.002]
[1754541341801,24.42209026,3668.1,3668.0,0.002]
[1754541342304,24.42209026,3668.1,3667.9,0.002]
[1754541342305,6.62532065,3668.0,3667.9,0.002]
[1754541342487,7.81553872,3668.0,3667.9,0.002]
[1754541342668,15.89546835,3667.7,3667.6,0.002]
[1754541342868,20.76202572,3667.7,3667.6,0.002]
[1754541343397,21.69672572,3667.7,3667.6,0.002]
[1754541344808,21.34768642,3667.7,3667.6,0.002]
[1754541345105,21.34768642,3667.7,3666.8,0.002]
[1754541345106,6.27709918,3666.9,3666.8,0.002]
[1754541345404,16.51906222,3666.9,3666.8,0.002]
[1754541345607,21.21728126,3666.9,3666.8,0.002]
[1754541346699,21.21677736,3666.9,3666.8,0.002]
[1754541347003,23.61115459,3666.9,3666.8,0.002]
[1754541349076,24.43122459,3666.9,3666.8,0.002]
[1754541349672,24.43089459,3666.9,3666.8,0.002]
[1754541349986,30.98489459,3666.9,3666.8,0.002]
[1754541353627,31.18549798,3666.9,3666.8,0.002]
[1754541355510,31.32149798,3666.9,3666.8,0.002]
[1754541356017,31.31949798,3666.9,3666.8,0.002]
[1754541357113,30.38479798,3666.9,3666.8,0.002]
[1754541357817,30.85379798,3666.9,3666.8,0.002]
[1754541358718,27.6576988,3666.9,3666.8,0.002]
[1754541359130,30.38479798,3666.9,3666.8,0.002]